fUST/lending_fUST_20250823
["ID","MTS","AMOUNT","RATE_DAILY","PERIOD"]
[381014010,1755945039794,-151.0,0.00027871,7]
[381014011,1755945039803,-415.817447,0.00027871,7]
[381014012,1755945039813,-415.817447,0.00027871,7]
[381014013,1755945039822,-151.0,0.00027871,7]
[381014014,1755945039831,-151.0,0.00027871,7]
[381014015,1755945039840,-156.504972,0.00027871,7]
[381014016,1755945039850,-156.504972,0.00027871,7]
[381014017,1755945039859,-156.504972,0.00027871,7]
[381014018,1755945039869,-156.504972,0.00027871,7]
[381014019,1755945039879,-151.0,0.00027871,7]
[381014020,1755945039889,-151.0,0.00027871,7]
[381014021,1755945039899,-151.0,0.00027871,7]
[381014022,1755945039908,-151.0,0.00027871,7]
[381014023,1755945039917,-151.0,0.00027871,7]
[381014024,1755945039927,-151.0,0.00027871,7]
[381014025,1755945039937,-151.0,0.00027873,7]
[381014026,1755945039946,-288.695698,0.00027873,7]
[381014027,1755945039955,-408.128203,0.00027873,7]
[381014028,1755945039965,-408.128203,0.00027873,7]
[381014029,1755945039976,-408.128203,0.00027873,7]
[381014030,1755945039986,-151.0,0.00027873,7]
[381014031,1755945039996,-151.0,0.00027873,7]
[381014032,1755945040005,-408.128203,0.00027873,7]
[381014033,1755945040015,-151.0,0.00027873,7]
[381014034,1755945040025,-151.0,0.00027873,7]
[381014035,1755945040035,-8198.2661565,0.00027873,2]
[381014036,1755945040044,-263.185998,0.00027873,7]
[381014037,1755945040053,-263.185998,0.00027873,7]
[381014038,1755945040063,-263.185998,0.00027873,7]
[381014039,1755945040072,-263.185998,0.00027873,7]
[381014040,1755945040082,-151.0,0.00027873,7]
[381014041,1755945040091,-151.0,0.00027873,7]
[381014042,1755945040102,-151.0,0.00027873,7]
[381014043,1755945040111,-151.0,0.00027873,7]
[381014044,1755945040121,-151.0,0.00027873,7]
[381014045,1755945040131,-151.0,0.00027873,7]
[381014046,1755945040141,-151.0,0.00027873,7]
[381014047,1755945040150,-154.45365,0.00027873,7]
[381014048,1755945040161,-151.0,0.00027873,7]
[381014049,1755945040172,-151.0,0.00027873,7]
[381014050,1755945040182,-151.0,0.00027873,7]
[381014051,1755945040192,-151.0,0.00027873,7]
[381014053,1755945040203,-151.0,0.00027873,7]
[381014054,1755945040213,-151.0,0.00027873,7]
[381014055,1755945040223,-151.0,0.00027873,7]
[381014056,1755945040232,-151.0,0.00027873,7]
[381014057,1755945040243,-151.0,0.00027873,7]
[381014058,1755945040252,-151.0,0.00027873,7]
[381014060,1755945040261,-151.0,0.00027873,7]
[381014061,1755945040271,-151.0,0.00027873,7]
[381014062,1755945040280,-320.97,0.0002792,3]
[381014063,1755945040290,-160.49,0.0002792,3]
[381014064,1755945040299,-793.2,0.00027923,3]
[381014065,1755945040309,-396.6,0.00027923,3]
[381014067,1755945040318,-198.3,0.00027923,3]
[381014068,1755945040328,-594.95,0.00027923,3]
[381014069,1755945040337,-12129.2049173,0.0002793,2]
[381014070,1755945040347,-372.43751735,0.0002793,2]
[381014071,1755945040357,-151.0,0.0002793,7]
[381014072,1755945040366,-151.0,0.0002793,7]
[381014073,1755945040375,-151.0,0.0002793,7]
[381014074,1755945040385,-153.593523,0.0002793,7]
[381014075,1755945040394,-151.0,0.0002793,7]
[381014076,1755945040404,-2529.89848724,0.00027932,2]
[381014077,1755945040413,-151.0,0.00027932,7]
[381014078,1755945040423,-445.784458,0.00027932,7]
[381014079,1755945040432,-445.784458,0.00027932,7]
[381014080,1755945040442,-445.784458,0.00027932,7]
[381014081,1755945040451,-445.784458,0.00027932,7]
[381014082,1755945040461,-152.669651,0.00027932,7]
[381014083,1755945040471,-151.0,0.00027932,7]
[381014084,1755945040480,-151.0,0.00027932,7]
[381014085,1755945040490,-151.0,0.00027932,7]
[381014086,1755945040500,-151.0,0.00027932,7]
[381014090,1755945040610,-151.0,0.00027932,7]
[381014091,1755945040619,-151.0,0.00027932,7]
[381014092,1755945040629,-151.0,0.00027932,7]
[381014094,1755945040638,-151.0,0.00027932,7]
[381014095,1755945040649,-151.0,0.00027932,7]
[381014096,1755945040658,-484.370615,0.00027932,7]
[381014097,1755945040667,-260.989484,0.00027932,7]
[381014099,1755945040677,-151.0,0.00027932,7]
[381014100,1755945040686,-151.0,0.00027932,7]
[381014102,1755945040695,-151.0,0.00027932,7]
[381014104,1755945040704,-484.370615,0.00027932,7]
[381014106,1755945040714,-240.167992,0.00027932,7]
[381014107,1755945040723,-151.0,0.00027932,7]
[381014108,1755945040732,-484.370615,0.00027932,7]
[381014109,1755945040741,-484.370615,0.00027932,7]
[381014110,1755945040751,-152.649123,0.00027932,7]
[381014111,1755945040761,-151.0,0.00027932,7]
[381014112,1755945040771,-417.15472785,0.00027932,7]
[381014113,1755945040780,-160.0,0.00027932,7]
[381014114,1755945040789,-215.94678008,0.00027932,7]
[381014115,1755945040798,-160.0,0.00027932,7]
[381014116,1755945040808,-210.814124,0.00027932,7]
[381014117,1755945040818,-151.0,0.00027932,7]
[381014118,1755945040828,-210.814124,0.00027932,7]
[381014119,1755945040838,-415.817447,0.00027932,7]
[381014120,1755945040848,-210.814124,0.00027932,7]
[381014121,1755945040858,-151.0,0.00027932,7]
[381014122,1755945040867,-415.817447,0.00027932,7]
[381014123,1755945040876,-151.0,0.00027932,7]
[381014124,1755945040885,-210.814124,0.00027932,7]
[381014125,1755945040895,-415.817447,0.00027932,7]
[381014126,1755945040904,-415.817447,0.00027932,7]
[381014127,1755945040913,-151.0,0.00027932,7]
[381014128,1755945040923,-156.504972,0.00027932,7]
[381014129,1755945040932,-156.504972,0.00027932,7]
[381014130,1755945040941,-156.504972,0.00027932,7]
[381014131,1755945040951,-156.504972,0.00027932,7]
[381014132,1755945040960,-152.239268,0.00027932,7]
[381014133,1755945040970,-232.37252479,0.00027932,7]
[381014134,1755945040979,-1379.02084504,0.00027933,2]
[381014135,1755945040989,-151.0,0.00027933,7]
[381014136,1755945040998,-151.0,0.00027933,7]
[381014137,1755945041008,-151.0,0.00027933,7]
[381014138,1755945041017,-445.784458,0.00027933,7]
[381014139,1755945041029,-445.784458,0.00027933,7]
[381014140,1755945041038,-445.784458,0.00027933,7]
[381014141,1755945041047,-445.784458,0.00027933,7]
[381014142,1755945041056,-151.0,0.00027933,7]
[381014143,1755945041065,-151.0,0.00027933,7]
[381014144,1755945041075,-151.0,0.00027933,7]
[381014145,1755945041084,-151.0,0.00027933,7]
[381014146,1755945041094,-151.0,0.00027933,7]
[381014147,1755945041103,-151.0,0.00027933,7]
[381014148,1755945041112,-151.0,0.00027933,7]
[381014149,1755945041122,-151.0,0.00027933,7]
[381014150,1755945041131,-484.370615,0.00027933,7]
[381014151,1755945041140,-151.0,0.00027933,7]
[381014152,1755945041150,-151.0,0.00027933,7]
[381014153,1755945041161,-151.0,0.00027933,7]
[381014154,1755945041170,-484.370615,0.00027933,7]
[381014155,1755945041180,-151.0,0.00027933,7]
[381014156,1755945041189,-484.370615,0.00027933,7]
[381014157,1755945041199,-484.370615,0.00027933,7]
[381014158,1755945041208,-151.0,0.00027933,7]
[381014159,1755945041217,-151.0,0.00027933,7]
[381014160,1755945041226,-408.128203,0.00027933,7]
[381014161,1755945041235,-408.128203,0.00027933,7]
[381014162,1755945041244,-408.128203,0.00027933,7]
[381014163,1755945041254,-151.0,0.00027933,7]
[381014164,1755945041263,-151.0,0.00027933,7]
[381014165,1755945041272,-151.0,0.00027933,7]
[381014166,1755945041281,-408.128203,0.00027933,7]
[381014167,1755945041291,-151.0,0.00027933,7]
[381014168,1755945041300,-263.185998,0.00027933,7]
[381014169,1755945041309,-263.185998,0.00027933,7]
[381014170,1755945041318,-263.185998,0.00027933,7]
[381014171,1755945041327,-263.185998,0.00027933,7]
[381014172,1755945041336,-151.0,0.00027933,7]
[381014173,1755945041346,-151.0,0.00027933,7]
[381014174,1755945041355,-151.0,0.00027933,7]
[381014175,1755945041364,-151.0,0.00027933,7]
[381014176,1755945041373,-151.0,0.00027933,7]
[381014177,1755945041383,-151.0,0.00027933,7]
[381014178,1755945041392,-243.184821,0.00027933,7]
[381014179,1755945041401,-151.0,0.00027933,7]
[381014180,1755945041410,-151.0,0.00027933,7]
[381014181,1755945041419,-151.0,0.00027933,7]
[381014182,1755945041428,-151.0,0.00027933,7]
[381014183,1755945041437,-151.0,0.00027933,7]
[381014184,1755945041446,-151.0,0.00027933,7]
[381014185,1755945041455,-151.0,0.00027933,7]
[381014186,1755945041465,-151.0,0.00027933,7]
[381014187,1755945041474,-151.0,0.00027933,7]
[381014188,1755945041483,-151.0,0.00027933,7]
[381014189,1755945041493,-151.0,0.00027933,7]
[381014190,1755945041503,-210.814124,0.00027933,7]
[381014191,1755945041512,-151.0,0.00027933,7]
[381014192,1755945041522,-210.814124,0.00027933,7]
[381014193,1755945041532,-415.817447,0.00027933,7]
[381014194,1755945041541,-210.814124,0.00027933,7]
[381014195,1755945041551,-151.0,0.00027933,7]
[381014196,1755945041561,-415.817447,0.00027933,7]
[381014197,1755945041574,-210.814124,0.00027933,7]
[381014198,1755945041583,-151.0,0.00027933,7]
[381014199,1755945041592,-415.817447,0.00027933,7]
[381014200,1755945041602,-415.817447,0.00027933,7]
[381014201,1755945041616,-151.664793,0.00027933,7]
[381014202,1755945041625,-156.504972,0.00027933,7]
[381014203,1755945041635,-156.504972,0.00027933,7]
[381014204,1755945041646,-156.504972,0.00027933,7]
[381014205,1755945041655,-156.504972,0.00027933,7]
[381014206,1755945041664,-151.0,0.00027933,7]
[381014207,1755945041674,-151.0,0.00027933,7]
[381014208,1755945041683,-151.0,0.00027933,7]
[381014209,1755945041693,-152.543967,0.00027933,7]
[381014210,1755945041703,-97033.6393382,0.00027933,2]
[381014211,1755945041713,-2979.5001388,0.00027933,2]
[381014212,1755945041722,-1946.32,0.00027941,2]
[381014213,1755945041731,-335.07101214,0.00027942,2]
[381014214,1755945041740,-293.06502519,0.00027942,2]
[381014215,1755945041749,-159.994448,0.00027943,7]
[381014216,1755945041759,-159.994448,0.00027943,7]
[381014217,1755945041768,-159.994448,0.00027943,7]
[381014218,1755945041778,-151.0,0.00027943,7]
[381014219,1755945041787,-159.994448,0.00027943,7]
[381014220,1755945041797,-151.0,0.00027943,7]
[381014221,1755945041806,-151.0,0.00027943,7]
[381014222,1755945041816,-151.0,0.00027943,7]
[381014223,1755945041826,-151.0,0.00027943,7]
[381014224,1755945041835,-151.0,0.00027943,7]
[381014225,1755945041844,-151.0,0.00027943,7]
[381014226,1755945041853,-151.0,0.00027943,7]
[381014227,1755945041863,-151.0,0.00027943,7]
[381014228,1755945041872,-151.0,0.00027943,7]
[381014229,1755945041882,-156.373075,0.00027943,7]
[381014230,1755945041891,-166.204867,0.00027943,7]
[381014231,1755945041900,-151.0,0.00027943,7]
[381014232,1755945041910,-151.0,0.00027943,7]
[381014233,1755945041919,-151.0,0.00027943,7]
[381014234,1755945041929,-228.756498,0.00027943,7]
[381014235,1755945041939,-151.0,0.00027943,7]
[381014236,1755945041948,-151.0,0.00027943,7]
[381014237,1755945041958,-151.0,0.00027943,7]
[381014238,1755945041966,-153.412941,0.00027943,7]
[381014239,1755945041976,-151.0,0.00027943,7]
[381014240,1755945041985,-151.0,0.00027943,7]
[381014241,1755945041995,-151.0,0.00027943,7]
[381014242,1755945042004,-151.0,0.00027943,7]
[381014243,1755945042013,-151.0,0.00027943,7]
[381014244,1755945042022,-151.0,0.00027943,7]
[381014245,1755945042032,-151.0,0.00027943,7]
[381014246,1755945042040,-151.0,0.00027943,7]
[381014247,1755945042050,-151.0,0.00027943,7]
[381014248,1755945042059,-152.321722,0.00027943,7]
[381014249,1755945042069,-151.0,0.00027943,7]
[381014250,1755945042081,-151.0,0.00027943,7]
[381014251,1755945042090,-151.0,0.00027943,7]
[381014252,1755945042100,-151.0,0.00027943,7]
[381014253,1755945042109,-217.0334113,0.00027943,7]
[381014254,1755945042118,-151.0,0.00027943,7]
[381014255,1755945042127,-844.50316758,0.00027943,7]
[381014256,1755945042136,-445.784458,0.00027943,7]
[381014257,1755945042145,-445.784458,0.00027943,7]
[381014258,1755945042154,-445.784458,0.00027943,7]
[381014259,1755945042163,-445.784458,0.00027943,7]
[381014260,1755945042172,-529.05847148,0.00027943,7]
[381014261,1755945042182,-151.0,0.00027943,7]
[381014262,1755945042191,-151.0,0.00027943,7]
[381014263,1755945042201,-151.0,0.00027943,7]
[381014264,1755945042210,-151.0,0.00027943,7]
[381014265,1755945042220,-151.0,0.00027943,7]
[381014266,1755945042230,-151.0,0.00027943,7]
[381014267,1755945042239,-151.0,0.00027943,7]
[381014268,1755945042249,-151.0,0.00027943,7]
[381014269,1755945042259,-484.370615,0.00027943,7]
[381014270,1755945042268,-151.0,0.00027943,7]
[381014271,1755945042277,-151.0,0.00027943,7]
[381014272,1755945042287,-264.885303,0.00027943,7]
[381014273,1755945042296,-484.370615,0.00027943,7]
[381014274,1755945042305,-229.349946,0.00027943,7]
[381014275,1755945042316,-484.370615,0.00027943,7]
[381014276,1755945042326,-484.370615,0.00027943,7]
[381014277,1755945042335,-151.0,0.00027943,7]
[381014278,1755945042344,-151.0,0.00027943,7]
[381014279,1755945042447,-160.0,0.00027943,7]
[381014280,1755945042456,-408.128203,0.00027943,7]
[381014281,1755945042466,-408.128203,0.00027943,7]
[381014282,1755945042475,-408.128203,0.00027943,7]
[381014283,1755945042485,-151.0,0.00027943,7]
[381014284,1755945042494,-151.0,0.00027943,7]
[381014285,1755945042503,-408.128203,0.00027943,7]
[381014286,1755945042513,-151.0,0.00027943,7]
[381014287,1755945042522,-263.185998,0.00027943,7]
[381014288,1755945042531,-263.185998,0.00027943,7]
[381014289,1755945042541,-263.185998,0.00027943,7]
[381014290,1755945042550,-263.185998,0.00027943,7]
[381014291,1755945042560,-151.335925,0.00027943,7]
[381014292,1755945042573,-151.0,0.00027943,7]
[381014293,1755945042583,-151.0,0.00027943,7]
[381014294,1755945042592,-151.0,0.00027943,7]
[381014295,1755945042601,-151.0,0.00027943,7]
[381014296,1755945042610,-151.0,0.00027943,7]
[381014297,1755945042621,-151.0,0.00027943,7]
[381014298,1755945042630,-151.0,0.00027943,7]
[381014299,1755945042639,-151.0,0.00027943,7]
[381014300,1755945042649,-151.0,0.00027943,7]
[381014301,1755945042658,-151.0,0.00027943,7]
[381014302,1755945042668,-151.0,0.00027943,7]
[381014303,1755945042677,-151.0,0.00027943,7]
[381014304,1755945042686,-151.0,0.00027943,7]
[381014305,1755945042696,-160.568594,0.00027943,7]
[381014306,1755945042705,-212.332818,0.00027943,7]
[381014307,1755945042716,-151.0,0.00027943,7]
[381014308,1755945042726,-210.814124,0.00027943,7]
[381014309,1755945042736,-151.0,0.00027943,7]
[381014310,1755945042745,-210.814124,0.00027943,7]
[381014311,1755945042755,-415.817447,0.00027943,7]
[381014312,1755945042764,-151.0,0.00027943,7]
[381014313,1755945042774,-210.814124,0.00027943,7]
[381014314,1755945042783,-415.817447,0.00027943,7]
[381014315,1755945042792,-210.814124,0.00027943,7]
[381014316,1755945042802,-151.0,0.00027943,7]
[381014317,1755945042811,-415.817447,0.00027943,7]
[381014318,1755945042821,-415.817447,0.00027943,7]
[381014319,1755945042830,-156.504972,0.00027943,7]
[381014320,1755945042840,-156.504972,0.00027943,7]
[381014321,1755945042850,-156.504972,0.00027943,7]
[381014322,1755945042859,-156.504972,0.00027943,7]
[381014323,1755945042870,-151.0,0.00027943,7]
[381014324,1755945042879,-151.0,0.00027943,7]
[381014325,1755945042889,-151.0,0.00027943,7]
[381014326,1755945042899,-370000.0,0.00027943,2]
[381014327,1755945042909,-500.0,0.00027973,5]
[381014328,1755945042918,-500.0,0.00027973,5]
[381014329,1755945042928,-501.07379539,0.00027973,5]
[381014330,1755945042937,-500.60076517,0.00027973,5]
[381014331,1755945042947,-501.05434612,0.00027973,5]
[381014332,1755945042956,-500.99527852,0.00027973,5]
[381014333,1755945042967,-500.0,0.00027973,5]
[381014334,1755945042976,-501.40769734,0.00027973,5]
[381014335,1755945042985,-501.38222871,0.00027973,5]
[381014336,1755945042994,-573.51611395,0.00027973,5]
[381014337,1755945043003,-500.0,0.00027973,5]
[381014338,1755945043013,-501.65133549,0.00027973,5]
[381014339,1755945043022,-500.0,0.00027973,5]
[381014340,1755945043032,-500.0,0.00027973,5]
[381014341,1755945043042,-501.68858118,0.00027973,5]
[381014342,1755945043052,-501.51976869,0.00027973,5]
[381014343,1755945043062,-342.30546957,0.00027973,5]
[381014344,1755945043073,-500.0,0.00027973,5]
[381014345,1755945043082,-500.0,0.00027973,5]
[381014346,1755945043092,-502.00930748,0.00027973,5]
[381014347,1755945043101,-500.0,0.00027973,5]
[381014348,1755945043111,-501.17743822,0.00027973,5]
[381014349,1755945043121,-503.24542109,0.00027973,5]
[381014350,1755945043131,-500.0,0.00027973,5]
[381014351,1755945043140,-501.31178191,0.00027973,5]
[381014352,1755945043150,-500.0,0.00027973,5]
[381014353,1755945043161,-529.05847148,0.00028,10]
[381014354,1755945043171,-2190.9917793,0.00028002,2]
[381014357,1755945043180,-2529.89848724,0.00028011,2]
[381014358,1755945043189,-2529.89848724,0.0002809,2]
[381014359,1755945043199,-168.0,0.00028094,2]
[381014360,1755945043208,-500.38015794,0.00028104,2]
[381014361,1755945043219,-168.0,0.00028115,2]
[381014363,1755945043228,-151.0,0.00028122,7]
[381014365,1755945043237,-151.0,0.00028122,7]
[381014367,1755945043247,-151.0,0.00028122,7]
[381014369,1755945043256,-151.0,0.00028122,7]
[381014370,1755945043265,-165.528779,0.00028122,7]
[381014371,1755945043274,-167.622002,0.00028122,7]
[381014373,1755945043284,-151.0,0.00028122,7]
[381014374,1755945043293,-151.0,0.00028122,7]
[381014376,1755945043302,-151.0,0.00028122,7]
[381014377,1755945043311,-151.0,0.00028122,7]
[381014378,1755945043320,-151.0,0.00028122,7]
[381014379,1755945043330,-151.0,0.00028122,7]
[381014380,1755945043339,-193.601579,0.00028122,7]
[381014381,1755945043348,-151.0,0.00028122,7]
[381014382,1755945043357,-152.269776,0.0002813,7]
[381014383,1755945043366,-151.0,0.0002813,7]
[381014384,1755945043375,-159.994448,0.0002813,7]
[381014385,1755945043384,-159.994448,0.0002813,7]
[381014386,1755945043393,-159.994448,0.0002813,7]
[381014387,1755945043402,-151.0,0.0002813,7]
[381014388,1755945043411,-159.994448,0.0002813,7]
[381014389,1755945043421,-151.0,0.0002813,7]
[381014390,1755945043430,-151.0,0.0002813,7]
[381014391,1755945043439,-151.0,0.0002813,7]
[381014392,1755945043448,-226.96915,0.0002813,7]
[381014393,1755945043459,-151.0,0.0002813,7]
[381014394,1755945043480,-151.0,0.0002813,7]
[381014395,1755945043490,-151.0,0.0002813,7]
[381014396,1755945043499,-151.0,0.0002813,7]
[381014397,1755945043508,-151.0,0.00028132,7]
[381014398,1755945043518,-217.753691,0.00028132,7]
[381014399,1755945043527,-151.0,0.00028132,7]
[381014400,1755945043537,-151.0,0.00028132,7]
[381014401,1755945043546,-151.0,0.00028132,7]
[381014402,1755945043555,-215.94678008,0.00028132,7]
[381014403,1755945043566,-206.969,0.0002819,2]
[381014404,1755945043579,-221.725,0.0002819,2]
[381014405,1755945043588,-204.131,0.0002819,2]
[381014406,1755945043598,-261.481,0.0002819,2]
[381014407,1755945043608,-219.772,0.0002819,2]
[381014408,1755945043618,-151.0,0.00028191,7]
[381014409,1755945043627,-151.0,0.00028191,7]
[381014410,1755945043637,-151.0,0.00028191,7]
[381014411,1755945043648,-12129.2049173,0.00028191,2]
[381014412,1755945043659,-372.43751735,0.00028191,2]
[381014413,1755945043668,-199.0,0.000282,10]
[381014414,1755945043679,-151.0,0.000282,18]
[381014415,1755945043688,-800.0,0.00028201,2]
[381014417,1755945043697,-151.0,0.00028201,7]
[381014418,1755945043706,-151.0,0.00028201,7]
[381014419,1755945043715,-151.0,0.00028201,7]
[381014420,1755945043726,-151.0,0.00028201,7]
[381014421,1755945043735,-151.0,0.00028201,7]
[381014422,1755945043744,-151.0,0.00028201,7]
[381014423,1755945043753,-151.0,0.00028201,7]
[381014424,1755945043763,-484.370615,0.00028201,7]
[381014426,1755945043771,-151.0,0.00028201,7]
[381014428,1755945043782,-484.370615,0.00028201,7]
[381014429,1755945043791,-484.370615,0.00028201,7]
[381014430,1755945043800,-484.370615,0.00028201,7]
[381014431,1755945043810,-155.627471,0.00028201,7]
[381014432,1755945043819,-151.0,0.00028201,7]
[381014433,1755945043829,-408.128203,0.00028201,7]
[381014434,1755945043838,-408.128203,0.00028201,7]
[381014435,1755945043849,-408.128203,0.00028201,7]
[381014436,1755945043858,-151.0,0.00028201,7]
[381014437,1755945043867,-408.128203,0.00028201,7]
[381014438,1755945043877,-151.0,0.00028201,7]
[381014439,1755945043886,-186.012097,0.00028201,7]
[381014440,1755945043895,-263.185998,0.00028201,7]
[381014441,1755945043905,-263.185998,0.00028201,7]
[381014442,1755945043914,-263.185998,0.00028201,7]
[381014443,1755945043923,-263.185998,0.00028201,7]
[381014444,1755945043932,-151.0,0.00028201,7]
[381014445,1755945043942,-151.0,0.00028201,7]
[381014446,1755945043951,-151.0,0.00028201,7]
[381014447,1755945043960,-151.0,0.00028201,7]
[381014448,1755945043971,-151.0,0.00028201,7]
[381014449,1755945043981,-151.0,0.00028201,7]
[381014450,1755945043990,-151.0,0.00028201,7]
[381014451,1755945044000,-210.814124,0.00028201,7]
[381014452,1755945044010,-210.814124,0.00028201,7]
[381014453,1755945044019,-151.0,0.00028201,7]
[381014454,1755945044029,-415.817447,0.00028201,7]
[381014455,1755945044039,-151.0,0.00028201,7]
[381014456,1755945044048,-210.814124,0.00028201,7]
[381014457,1755945044058,-415.817447,0.00028201,7]
[381014458,1755945044067,-179.06500696,0.00028201,7]
[381014459,1755945044077,-210.814128,0.00028201,7]
[381014460,1755945044174,-415.817447,0.00028201,7]
[381014461,1755945044184,-415.817455,0.00028201,7]
[381014462,1755945044194,-156.504972,0.00028201,7]
[381014463,1755945044203,-156.504972,0.00028201,7]
[381014464,1755945044214,-156.504972,0.00028201,7]
[381014465,1755945044225,-156.50497,0.00028201,7]
[381014466,1755945044235,-217.740009,0.0002822,7]
[381014467,1755945044243,-151.0,0.0002822,7]
[381014468,1755945044253,-151.0,0.0002822,7]
[381014469,1755945044262,-445.784458,0.0002822,7]
[381014470,1755945044271,-445.784458,0.0002822,7]
[381014471,1755945044281,-445.784458,0.0002822,7]
[381014472,1755945044290,-445.784458,0.0002822,7]
[381014473,1755945044299,-151.0,0.0002822,7]
[381014474,1755945044309,-151.0,0.0002822,7]
[381014475,1755945044318,-151.0,0.0002822,7]
[381014476,1755945044327,-151.0,0.0002822,7]
[381014477,1755945044337,-151.0,0.0002822,7]
[381014478,1755945044346,-151.0,0.0002822,7]
[381014479,1755945044355,-151.0,0.0002822,7]
[381014480,1755945044364,-281.867994,0.0002822,7]
[381014481,1755945044373,-151.571045,0.0002822,7]
[381014482,1755945044383,-151.0,0.0002823,2]
[381014483,1755945044391,-151.0,0.0002823,7]
[381014484,1755945044401,-159.994448,0.0002823,7]
[381014485,1755945044410,-159.994448,0.0002823,7]
[381014486,1755945044420,-159.994448,0.0002823,7]
[381014487,1755945044430,-151.0,0.0002823,7]
[381014488,1755945044440,-159.994448,0.0002823,7]
[381014489,1755945044449,-531.21360765,0.0002823,2]
[381014490,1755945044459,-200.356239,0.0002823,7]
[381014491,1755945044470,-179.733719,0.0002823,7]
[381014492,1755945044480,-151.0,0.0002823,7]
[381014493,1755945044490,-151.0,0.0002823,7]
[381014494,1755945044499,-151.0,0.0002823,7]
[381014495,1755945044509,-151.0,0.0002823,7]
[381014496,1755945044518,-151.0,0.0002823,7]
[381014497,1755945044527,-151.0,0.0002823,7]
[381014498,1755945044536,-151.0,0.0002823,7]
[381014499,1755945044547,-151.0,0.0002823,7]
[381014500,1755945044556,-152.637525,0.0002823,7]
[381014501,1755945044566,-151.0,0.0002823,7]
[381014502,1755945044579,-151.0,0.0002823,7]
[381014503,1755945044589,-151.0,0.0002823,7]
[381014504,1755945044598,-151.0,0.0002823,7]
[381014505,1755945044607,-151.0,0.0002823,7]
[381014506,1755945044618,-287.838342,0.0002823,7]
[381014507,1755945044627,-445.784458,0.0002823,7]
[381014508,1755945044640,-445.784458,0.0002823,7]
[381014509,1755945044659,-445.784458,0.0002823,7]
[381014510,1755945044671,-445.784462,0.0002823,7]
[381014511,1755945044682,-151.0,0.0002823,7]
[381014512,1755945044692,-214.53217,0.0002823,7]
[381014513,1755945044702,-151.0,0.0002823,7]
[381014514,1755945044714,-151.0,0.0002823,7]
[381014515,1755945044725,-151.0,0.0002823,7]
[381014516,1755945044736,-151.0,0.0002823,7]
[381014517,1755945044747,-151.0,0.0002823,7]
[381014518,1755945044757,-151.0,0.0002823,7]
[381014519,1755945044771,-484.370615,0.0002823,7]
[381014520,1755945044791,-151.0,0.0002823,7]
[381014521,1755945044813,-151.0,0.0002823,7]
[381014522,1755945044833,-484.370615,0.0002823,7]
[381014523,1755945044843,-484.370615,0.0002823,7]
[381014524,1755945044852,-484.370609,0.0002823,7]
[381014525,1755945044862,-151.0,0.0002823,7]
[381014526,1755945044874,-408.128203,0.0002823,7]
[381014527,1755945044883,-408.128203,0.0002823,7]
[381014528,1755945044893,-408.128203,0.0002823,7]
[381014529,1755945044903,-151.0,0.0002823,7]
[381014530,1755945044912,-408.128198,0.0002823,7]
[381014531,1755945044922,-151.0,0.0002823,7]